[Event "Titled Tuesday Blitz August 15 Early 2023"]
[White "Gurevich, Dmitry"]
[Black "ExchangeAB"]
[WhiteFideId "2000407"]
[WhiteElo "2474"]
[BlackElo "2414"]
[Result "0-1"]
[Round "7"]
[TimeControl "180+1"]
[Date "2023.08.15"]
[WhiteClock "0:00:00"]
[BlackClock "0:00:10"]
[Board "133"]

1. d4 {[%clk 0:03:00]}  Nf6 {[%clk 0:03:00]} 2. c4 {[%clk 0:03:00]}  c6 {[%clk 0:03:00]} 3. Bf4 {[%clk 0:02:59]}  d5 {[%clk 0:03:01]} 4. e3 {[%clk 0:02:59]}  Qb6 {[%clk 0:02:56]} 5. Qb3 {[%clk 0:02:57]}  e6 {[%clk 0:02:54]} 6. c5 {[%clk 0:02:56]}  Qxb3 {[%clk 0:02:53]} 7. axb3 {[%clk 0:02:55]}  Na6 {[%clk 0:02:30]} 8. Bxa6 {[%clk 0:02:46]}  bxa6 {[%clk 0:02:31]} 9. Nf3 {[%clk 0:02:41]}  Nh5 {[%clk 0:02:30]} 10. Bc7 {[%clk 0:02:41]}  Be7 {[%clk 0:02:19]} 11. h3 {[%clk 0:02:38]}  Nf6 {[%clk 0:02:16]} 12. Nc3 {[%clk 0:02:37]}  Nd7 {[%clk 0:02:10]} 13. Kd2 {[%clk 0:02:33]}  f6 {[%clk 0:02:09]} 14. Ra3 {[%clk 0:02:30]}  Kf7 {[%clk 0:02:07]} 15. b4 {[%clk 0:02:30]}  g5 {[%clk 0:02:02]} 16. e4 {[%clk 0:02:23]}  h6 {[%clk 0:01:55]} 17. Re1 {[%clk 0:02:18]}  Bd8 {[%clk 0:01:54]} 18. Bd6 {[%clk 0:02:10]}  Re8 {[%clk 0:01:49]} 19. e5 {[%clk 0:02:07]}  f5 {[%clk 0:01:47]} 20. g4 {[%clk 0:02:07]}  f4 {[%clk 0:01:45]} 21. Rh1 {[%clk 0:02:03]}  Kg7 {[%clk 0:01:38]} 22. h4 {[%clk 0:02:01]}  Nf8 {[%clk 0:01:36]} 23. hxg5 {[%clk 0:02:00]}  hxg5 {[%clk 0:01:37]} 24. Rh5 {[%clk 0:01:56]}  Nh7 {[%clk 0:01:23]} 25. Ra1 {[%clk 0:01:55]}  Rh8 {[%clk 0:01:19]} 26. Rah1 {[%clk 0:01:54]}  Bd7 {[%clk 0:01:19]} 27. Ne2 {[%clk 0:01:42]}  a5 {[%clk 0:01:17]} 28. bxa5 {[%clk 0:01:37]}  Bxa5+ {[%clk 0:01:18]} 29. Kc2 {[%clk 0:01:36]}  Be8 {[%clk 0:01:10]} 30. Rxh7+ {[%clk 0:01:28]}  Rxh7 {[%clk 0:01:10]} 31. Rxh7+ {[%clk 0:01:28]}  Kxh7 {[%clk 0:01:09]} 32. Nxg5+ {[%clk 0:01:28]}  Kh6 {[%clk 0:01:06]} 33. Nxe6 {[%clk 0:01:27]}  Bg6+ {[%clk 0:01:03]} 34. Kc1 {[%clk 0:01:25]}  f3 {[%clk 0:00:58]} 35. Ng3 {[%clk 0:01:07]}  Be1 {[%clk 0:00:49]} 36. Nh1 {[%clk 0:01:07]}  Be4 {[%clk 0:00:44]} 37. Kd1 {[%clk 0:00:54]}  Bb4 {[%clk 0:00:44]} 38. Ng3 {[%clk 0:00:51]}  a5 {[%clk 0:00:42]} 39. Nc7 {[%clk 0:00:47]}  Rg8 {[%clk 0:00:39]} 40. e6 {[%clk 0:00:38]}  Rxg4 {[%clk 0:00:37]} 41. Nxe4 {[%clk 0:00:34]}  Rxe4 {[%clk 0:00:31]} 42. Be5 {[%clk 0:00:34]}  Bxc5 {[%clk 0:00:29]} 43. Kc2 {[%clk 0:00:21]}  Bb4 {[%clk 0:00:24]} 44. Kd3 {[%clk 0:00:20]}  Kg6 {[%clk 0:00:22]} 45. Na6 {[%clk 0:00:16]}  Be7 {[%clk 0:00:19]} 46. Nb8 {[%clk 0:00:16]}  Kf5 {[%clk 0:00:16]} 47. Nxc6 {[%clk 0:00:13]}  Kxe6 {[%clk 0:00:17]} 48. Nxa5 {[%clk 0:00:13]}  Re2 {[%clk 0:00:17]} 49. Bg3 {[%clk 0:00:13]}  Bd6 {[%clk 0:00:16]} 50. Bh4 {[%clk 0:00:09]}  Rxb2 {[%clk 0:00:14]} 51. Nc6 {[%clk 0:00:08]}  Re2 {[%clk 0:00:13]} 52. Na5 {[%clk 0:00:06]}  Be7 {[%clk 0:00:13]} 53. Bg3 {[%clk 0:00:05]}  Bb4 {[%clk 0:00:14]} 54. Nc6 {[%clk 0:00:04]}  Be1 {[%clk 0:00:14]} 55. Ne5 {[%clk 0:00:04]}  Bxf2 {[%clk 0:00:13]} 56. Bxf2 {[%clk 0:00:01]}  Rxf2 {[%clk 0:00:14]} 57. Ke3 {[%clk 0:00:02]}  Ra2 {[%clk 0:00:13]} 58. Kxf3 {[%clk 0:00:02]}  Kf5 {[%clk 0:00:13]} 59. Ke3 {[%clk 0:00:02]}  Ra3+ {[%clk 0:00:13]} 60. Kd2 {[%clk 0:00:01]}  Ke4 {[%clk 0:00:13]} 61. Nc6 {[%clk 0:00:02]}  Rh3 {[%clk 0:00:11]} 62. Kc2 {[%clk 0:00:00]}  Rh6 {[%clk 0:00:10]} 0-1


[Site "https://www.chess.com"]

[Event "Titled Tuesday Blitz August 15 Early 2023"]
[White "slidingknight2775"]
[Black "Vila Dupla, Aurelio"]
[BlackFideId "2203383"]
[WhiteElo "2452"]
[BlackElo "2123"]
[Result "1-0"]
[Round "7"]
[TimeControl "180+1"]
[Date "2023.08.15"]
[WhiteClock "0:01:28"]
[BlackClock "0:00:19"]
[Board "136"]

1. Nf3 {[%clk 0:03:00]}  Nf6 {[%clk 0:02:59]} 2. g3 {[%clk 0:03:01]}  g6 {[%clk 0:02:59]} 3. Bg2 {[%clk 0:03:01]}  Bg7 {[%clk 0:03:00]} 4. O-O {[%clk 0:03:02]}  O-O {[%clk 0:03:01]} 5. c4 {[%clk 0:03:03]}  c6 {[%clk 0:03:00]} 6. d4 {[%clk 0:02:57]}  d5 {[%clk 0:03:00]} 7. Nbd2 {[%clk 0:02:57]}  Ne4 {[%clk 0:02:50]} 8. b3 {[%clk 0:02:56]}  Nxd2 {[%clk 0:02:45]} 9. Qxd2 {[%clk 0:02:56]}  dxc4 {[%clk 0:02:44]} 10. bxc4 {[%clk 0:02:56]}  c5 {[%clk 0:02:43]} 11. Bb2 {[%clk 0:02:56]}  cxd4 {[%clk 0:02:39]} 12. Bxd4 {[%clk 0:02:57]}  Nc6 {[%clk 0:02:25]} 13. Bxg7 {[%clk 0:02:56]}  Qxd2 {[%clk 0:02:23]} 14. Nxd2 {[%clk 0:02:57]}  Kxg7 {[%clk 0:02:23]} 15. Rab1 {[%clk 0:02:58]}  Rd8 {[%clk 0:02:19]} 16. Nb3 {[%clk 0:02:57]}  Bf5 {[%clk 0:02:17]} 17. Rb2 {[%clk 0:02:54]}  Rac8 {[%clk 0:02:11]} 18. h3 {[%clk 0:02:47]}  b6 {[%clk 0:02:10]} 19. c5 {[%clk 0:02:46]}  b5 {[%clk 0:01:32]} 20. Rc1 {[%clk 0:02:44]}  a6 {[%clk 0:01:07]} 21. e3 {[%clk 0:02:41]}  Be6 {[%clk 0:01:06]} 22. Bxc6 {[%clk 0:02:40]}  Rxc6 {[%clk 0:01:05]} 23. Nd4 {[%clk 0:02:40]}  Rc7 {[%clk 0:01:04]} 24. Nxe6+ {[%clk 0:02:40]}  fxe6 {[%clk 0:01:04]} 25. a4 {[%clk 0:02:17]}  bxa4 {[%clk 0:01:00]} 26. Rb6 {[%clk 0:02:18]}  Kf7 {[%clk 0:00:50]} 27. Rxa6 {[%clk 0:02:18]}  Rd5 {[%clk 0:00:50]} 28. c6 {[%clk 0:02:16]}  a3 {[%clk 0:00:48]} 29. Rxa3 {[%clk 0:02:15]}  Rd6 {[%clk 0:00:48]} 30. Rac3 {[%clk 0:02:15]}  e5 {[%clk 0:00:46]} 31. Kg2 {[%clk 0:02:16]}  Ke6 {[%clk 0:00:47]} 32. Kf3 {[%clk 0:02:16]}  Rd2 {[%clk 0:00:47]} 33. e4 {[%clk 0:02:10]}  Ra2 {[%clk 0:00:46]} 34. R1c2 {[%clk 0:02:06]}  Rxc2 {[%clk 0:00:45]} 35. Rxc2 {[%clk 0:02:07]}  Kd6 {[%clk 0:00:46]} 36. Kg4 {[%clk 0:02:07]}  h6 {[%clk 0:00:43]} 37. h4 {[%clk 0:01:50]}  e6 {[%clk 0:00:40]} 38. f4 {[%clk 0:01:43]}  exf4 {[%clk 0:00:36]} 39. gxf4 {[%clk 0:01:43]}  Rxc6 {[%clk 0:00:34]} 40. Rxc6+ {[%clk 0:01:28]}  Kxc6 {[%clk 0:00:34]} 41. h5 {[%clk 0:01:29]}  gxh5+ {[%clk 0:00:24]} 42. Kxh5 {[%clk 0:01:30]}  Kd6 {[%clk 0:00:23]} 43. Kxh6 {[%clk 0:01:28]}  Kd7 {[%clk 0:00:22]} 44. Kg7 {[%clk 0:01:28]}  Ke7 {[%clk 0:00:19]} 45. e5 {[%clk 0:01:28]} 1-0


[Site "https://www.chess.com"]

[Event "Titled Tuesday Blitz August 15 Early 2023"]
[White "Azhar, Puteri Munajjah Az-Zahraa"]
[Black "Harriott, Tyrell"]
[WhiteFideId "5709040"]
[BlackFideId "2086484"]
[WhiteElo "2230"]
[BlackElo "2423"]
[Result "0-1"]
[Round "7"]
[TimeControl "180+1"]
[Date "2023.08.15"]
[WhiteClock "0:02:05"]
[BlackClock "0:01:43"]
[Board "137"]

1. e4 {[%clk 0:03:00]}  d5 {[%clk 0:02:54]} 2. exd5 {[%clk 0:03:00]}  Nf6 {[%clk 0:02:53]} 3. d4 {[%clk 0:02:59]}  Qxd5 {[%clk 0:02:53]} 4. Nf3 {[%clk 0:03:00]}  Bg4 {[%clk 0:02:52]} 5. Be2 {[%clk 0:03:00]}  Nc6 {[%clk 0:02:51]} 6. O-O {[%clk 0:02:56]}  O-O-O {[%clk 0:02:51]} 7. c3 {[%clk 0:02:57]}  Qh5 {[%clk 0:02:50]} 8. h3 {[%clk 0:02:44]}  e5 {[%clk 0:02:50]} 9. Bg5 {[%clk 0:02:31]}  Bxf3 {[%clk 0:02:41]} 10. Bxf6 {[%clk 0:02:22]}  Bxe2 {[%clk 0:02:41]} 11. g4 {[%clk 0:02:19]}  Qg6 {[%clk 0:01:44]} 12. Qxe2 {[%clk 0:02:05]}  gxf6 {[%clk 0:01:43]} 0-1


[Site "https://www.chess.com"]

[Event "Titled Tuesday Blitz August 15 Early 2023"]
[White "Samarth J Rao"]
[Black "Saito, Vinicius"]
[WhiteFideId "46652370"]
[BlackFideId "2113384"]
[WhiteElo "2014"]
[BlackElo "2346"]
[Result "1-0"]
[Round "7"]
[TimeControl "180+1"]
[Date "2023.08.15"]
[WhiteClock "0:01:15"]
[BlackClock "0:00:08"]
[Board "138"]

1. e4 {[%clk 0:02:59]}  c5 {[%clk 0:02:59]} 2. Nc3 {[%clk 0:02:58]}  a6 {[%clk 0:02:59]} 3. g3 {[%clk 0:02:58]}  b5 {[%clk 0:02:59]} 4. Bg2 {[%clk 0:02:58]}  Bb7 {[%clk 0:03:00]} 5. Nge2 {[%clk 0:02:58]}  e6 {[%clk 0:03:00]} 6. O-O {[%clk 0:02:57]}  Nc6 {[%clk 0:03:00]} 7. d3 {[%clk 0:02:57]}  Nf6 {[%clk 0:03:00]} 8. h3 {[%clk 0:02:57]}  d5 {[%clk 0:02:59]} 9. exd5 {[%clk 0:02:57]}  Nxd5 {[%clk 0:02:59]} 10. Nxd5 {[%clk 0:02:57]}  exd5 {[%clk 0:02:59]} 11. Nf4 {[%clk 0:02:57]}  Nd4 {[%clk 0:02:50]} 12. Re1+ {[%clk 0:02:55]}  Be7 {[%clk 0:02:49]} 13. c3 {[%clk 0:02:55]}  Nf5 {[%clk 0:02:49]} 14. Qg4 {[%clk 0:02:52]}  g6 {[%clk 0:02:47]} 15. Re5 {[%clk 0:02:49]}  Qd6 {[%clk 0:02:38]} 16. Rxf5 {[%clk 0:02:33]}  gxf5 {[%clk 0:02:38]} 17. Qxf5 {[%clk 0:02:34]}  Rd8 {[%clk 0:02:29]} 18. Bd2 {[%clk 0:02:26]}  O-O {[%clk 0:02:08]} 19. Nh5 {[%clk 0:02:22]}  Qg6 {[%clk 0:02:00]} 20. Qf3 {[%clk 0:02:21]}  Ba8 {[%clk 0:01:51]} 21. Nf4 {[%clk 0:02:19]}  Qg7 {[%clk 0:01:43]} 22. Re1 {[%clk 0:02:18]}  Rfe8 {[%clk 0:01:42]} 23. Nh5 {[%clk 0:02:17]}  Qg6 {[%clk 0:01:38]} 24. d4 {[%clk 0:02:12]}  cxd4 {[%clk 0:01:14]} 25. cxd4 {[%clk 0:02:09]}  Bc6 {[%clk 0:01:07]} 26. Kh2 {[%clk 0:02:09]}  Kh8 {[%clk 0:00:58]} 27. Nf4 {[%clk 0:02:04]}  Qf5 {[%clk 0:00:53]} 28. g4 {[%clk 0:02:02]}  Qf6 {[%clk 0:00:52]} 29. Re5 {[%clk 0:01:53]}  Bd6 {[%clk 0:00:51]} 30. Rf5 {[%clk 0:01:53]}  Qg7 {[%clk 0:00:44]} 31. Be3 {[%clk 0:01:51]}  Bc7 {[%clk 0:00:38]} 32. Kg1 {[%clk 0:01:50]}  Re7 {[%clk 0:00:32]} 33. Nh5 {[%clk 0:01:49]}  Qg6 {[%clk 0:00:31]} 34. Rf6 {[%clk 0:01:46]}  Qb1+ {[%clk 0:00:30]} 35. Bf1 {[%clk 0:01:42]}  Qe4 {[%clk 0:00:28]} 36. Qxe4 {[%clk 0:01:40]}  dxe4 {[%clk 0:00:28]} 37. Rxc6 {[%clk 0:01:41]}  Kg8 {[%clk 0:00:26]} 38. Bg2 {[%clk 0:01:38]}  Rd6 {[%clk 0:00:18]} 39. Rxd6 {[%clk 0:01:34]}  Bxd6 {[%clk 0:00:18]} 40. Nf6+ {[%clk 0:01:35]}  Kf8 {[%clk 0:00:18]} 41. Nxe4 {[%clk 0:01:36]}  Bb4 {[%clk 0:00:17]} 42. a3 {[%clk 0:01:36]}  Be1 {[%clk 0:00:16]} 43. Kf1 {[%clk 0:01:33]}  Ba5 {[%clk 0:00:16]} 44. Bh6+ {[%clk 0:01:31]}  Ke8 {[%clk 0:00:16]} 45. Bg5 {[%clk 0:01:30]}  Rc7 {[%clk 0:00:14]} 46. Nc5 {[%clk 0:01:26]}  Bb6 {[%clk 0:00:14]} 47. b4 {[%clk 0:01:26]}  a5 {[%clk 0:00:13]} 48. Bf4 {[%clk 0:01:24]}  Rc8 {[%clk 0:00:12]} 49. Ke2 {[%clk 0:01:21]}  axb4 {[%clk 0:00:13]} 50. axb4 {[%clk 0:01:22]}  f6 {[%clk 0:00:12]} 51. Kd3 {[%clk 0:01:22]}  Kf7 {[%clk 0:00:13]} 52. Bb7 {[%clk 0:01:20]}  Re8 {[%clk 0:00:11]} 53. Bc6 {[%clk 0:01:20]}  Re1 {[%clk 0:00:10]} 54. Bxb5 {[%clk 0:01:20]}  Rh1 {[%clk 0:00:11]} 55. Bc4+ {[%clk 0:01:18]}  Ke7 {[%clk 0:00:11]} 56. Ke4 {[%clk 0:01:14]}  Rxh3 {[%clk 0:00:11]} 57. Kf5 {[%clk 0:01:15]}  Rf3 {[%clk 0:00:10]} 58. Ke4 {[%clk 0:01:13]}  Rxf2 {[%clk 0:00:11]} 59. Bg8 {[%clk 0:01:13]}  Re2+ {[%clk 0:00:11]} 60. Kf3 {[%clk 0:01:12]}  Rb2 {[%clk 0:00:11]} 61. Ne4 {[%clk 0:01:08]}  Rxb4 {[%clk 0:00:10]} 62. Bd6+ {[%clk 0:01:08]}  Kd7 {[%clk 0:00:08]} 63. Bxb4 {[%clk 0:01:09]}  Bxd4 {[%clk 0:00:09]} 64. Bc3 {[%clk 0:01:08]}  Bxc3 {[%clk 0:00:08]} 65. Nxc3 {[%clk 0:01:09]}  Ke7 {[%clk 0:00:09]} 66. Bxh7 {[%clk 0:01:09]}  Ke6 {[%clk 0:00:08]} 67. Bf5+ {[%clk 0:01:09]}  Ke5 {[%clk 0:00:09]} 68. Ne2 {[%clk 0:01:09]}  Kd5 {[%clk 0:00:09]} 69. Kf4 {[%clk 0:01:10]}  Kd6 {[%clk 0:00:08]} 70. Ng3 {[%clk 0:01:11]}  Ke7 {[%clk 0:00:09]} 71. Nh5 {[%clk 0:01:12]}  Kf7 {[%clk 0:00:10]} 72. Ke4 {[%clk 0:01:12]}  Ke7 {[%clk 0:00:10]} 73. Kd5 {[%clk 0:01:13]}  Kf7 {[%clk 0:00:10]} 74. Kd6 {[%clk 0:01:14]}  Kf8 {[%clk 0:00:10]} 75. Nxf6 {[%clk 0:01:14]}  Kf7 {[%clk 0:00:08]} 76. Nh5 {[%clk 0:01:15]} 1-0


[Site "https://www.chess.com"]

[Event "Titled Tuesday Blitz August 15 Early 2023"]
[White "Osinovsky, Stepan"]
[Black "Bilan, Danila"]
[WhiteFideId "4157354"]
[BlackFideId "24161918"]
[WhiteElo "2338"]
[BlackElo "2574"]
[Result "0-1"]
[Round "7"]
[TimeControl "180+1"]
[Date "2023.08.15"]
[WhiteClock "0:00:00"]
[BlackClock "0:00:08"]
[Board "139"]

1. e4 {[%clk 0:00:46]}  c6 {[%clk 0:02:57]} 2. d3 {[%clk 0:00:46]}  d5 {[%clk 0:02:57]} 3. Nd2 {[%clk 0:00:46]}  e5 {[%clk 0:02:57]} 4. Ngf3 {[%clk 0:00:45]}  Bd6 {[%clk 0:02:58]} 5. g3 {[%clk 0:00:45]}  Bg4 {[%clk 0:02:59]} 6. Bg2 {[%clk 0:00:45]}  Nf6 {[%clk 0:02:59]} 7. h3 {[%clk 0:00:45]}  Bh5 {[%clk 0:02:59]} 8. Qe2 {[%clk 0:00:42]}  O-O {[%clk 0:02:59]} 9. Nf1 {[%clk 0:00:42]}  Nbd7 {[%clk 0:02:56]} 10. g4 {[%clk 0:00:41]}  Bg6 {[%clk 0:02:56]} 11. Ng3 {[%clk 0:00:42]}  Re8 {[%clk 0:02:50]} 12. Nh4 {[%clk 0:00:40]}  Nc5 {[%clk 0:02:47]} 13. Nhf5 {[%clk 0:00:38]}  Bf8 {[%clk 0:02:47]} 14. h4 {[%clk 0:00:28]}  Ne6 {[%clk 0:02:46]} 15. h5 {[%clk 0:00:25]}  Bxf5 {[%clk 0:02:44]} 16. Nxf5 {[%clk 0:00:26]}  Nf4 {[%clk 0:02:45]} 17. Qf3 {[%clk 0:00:23]}  dxe4 {[%clk 0:02:06]} 18. dxe4 {[%clk 0:00:24]}  Bb4+ {[%clk 0:02:01]} 19. Kf1 {[%clk 0:00:23]}  Bd2 {[%clk 0:01:53]} 20. g5 {[%clk 0:00:20]}  Bxc1 {[%clk 0:01:29]} 21. gxf6 {[%clk 0:00:21]}  Bxb2 {[%clk 0:01:22]} 22. Qg4 {[%clk 0:00:18]}  Qxf6 {[%clk 0:01:17]} 23. Rb1 {[%clk 0:00:15]}  Ba3 {[%clk 0:01:09]} 24. Bf3 {[%clk 0:00:11]}  b6 {[%clk 0:01:05]} 25. Rg1 {[%clk 0:00:11]}  Bf8 {[%clk 0:01:04]} 26. c3 {[%clk 0:00:10]}  Rad8 {[%clk 0:01:02]} 27. Bd1 {[%clk 0:00:11]}  Rd2 {[%clk 0:00:53]} 28. Bb3 {[%clk 0:00:11]}  g6 {[%clk 0:00:38]} 29. Rd1 {[%clk 0:00:10]}  Red8 {[%clk 0:00:35]} 30. Rxd2 {[%clk 0:00:10]}  Rxd2 {[%clk 0:00:36]} 31. hxg6 {[%clk 0:00:10]}  hxg6 {[%clk 0:00:36]} 32. Qh5 {[%clk 0:00:10]}  Bg7 {[%clk 0:00:20]} 33. Qf3 {[%clk 0:00:09]}  gxf5 {[%clk 0:00:18]} 34. Qe3 {[%clk 0:00:05]}  Rd7 {[%clk 0:00:11]} 35. Rg3 {[%clk 0:00:04]}  Ng6 {[%clk 0:00:09]} 36. exf5 {[%clk 0:00:03]}  Qxf5 {[%clk 0:00:10]} 37. Kg1 {[%clk 0:00:03]}  Nf4 {[%clk 0:00:08]} 38. Qf3 {[%clk 0:00:02]}  Qb1+ {[%clk 0:00:07]} 39. Kh2 {[%clk 0:00:02]}  Qf5 {[%clk 0:00:07]} 40. Rg4 {[%clk 0:00:02]}  Rd6 {[%clk 0:00:07]} 41. Qg3 {[%clk 0:00:01]}  Rh6+ {[%clk 0:00:07]} 42. Kg1 {[%clk 0:00:00]}  Qb1+ {[%clk 0:00:08]} 0-1


[Site "https://www.chess.com"]

[Event "Titled Tuesday Blitz August 15 Early 2023"]
[White "Rian, Kapriaga"]
[Black "Nguyen Hong Anh"]
[WhiteFideId "7103263"]
[BlackFideId "12406732"]
[WhiteElo "2336"]
[BlackElo "2537"]
[Result "0-1"]
[Round "7"]
[TimeControl "180+1"]
[Date "2023.08.15"]
[WhiteClock "0:00:08"]
[BlackClock "0:01:14"]
[Board "140"]

1. d4 {[%clk 0:03:00]}  Nf6 {[%clk 0:02:48]} 2. Nf3 {[%clk 0:03:00]}  g6 {[%clk 0:02:47]} 3. Bg5 {[%clk 0:02:56]}  Ne4 {[%clk 0:02:46]} 4. Bh4 {[%clk 0:02:53]}  Bg7 {[%clk 0:02:45]} 5. e3 {[%clk 0:02:53]}  O-O {[%clk 0:02:44]} 6. Nbd2 {[%clk 0:02:52]}  d5 {[%clk 0:02:44]} 7. Be2 {[%clk 0:02:51]}  c5 {[%clk 0:02:44]} 8. c3 {[%clk 0:02:50]}  Nc6 {[%clk 0:02:44]} 9. O-O {[%clk 0:02:48]}  Qb6 {[%clk 0:02:37]} 10. Qb3 {[%clk 0:02:45]}  Nxd2 {[%clk 0:02:34]} 11. Nxd2 {[%clk 0:02:44]}  e5 {[%clk 0:02:31]} 12. dxe5 {[%clk 0:02:15]}  Nxe5 {[%clk 0:02:28]} 13. Rfd1 {[%clk 0:02:03]}  Be6 {[%clk 0:02:21]} 14. Qxb6 {[%clk 0:01:54]}  axb6 {[%clk 0:02:20]} 15. a3 {[%clk 0:01:54]}  h6 {[%clk 0:02:14]} 16. Nf3 {[%clk 0:01:52]}  Nc6 {[%clk 0:02:10]} 17. Bg3 {[%clk 0:01:47]}  Rfc8 {[%clk 0:01:55]} 18. h3 {[%clk 0:01:41]}  d4 {[%clk 0:01:47]} 19. exd4 {[%clk 0:01:38]}  cxd4 {[%clk 0:01:45]} 20. cxd4 {[%clk 0:01:31]}  Bd5 {[%clk 0:01:42]} 21. Ne5 {[%clk 0:01:28]}  Na5 {[%clk 0:01:36]} 22. Rac1 {[%clk 0:01:16]}  Nb3 {[%clk 0:01:32]} 23. Rxc8+ {[%clk 0:01:13]}  Rxc8 {[%clk 0:01:33]} 24. Bf3 {[%clk 0:01:04]}  Rd8 {[%clk 0:01:20]} 25. Rd3 {[%clk 0:00:30]}  Bxf3 {[%clk 0:01:18]} 26. Rxb3 {[%clk 0:00:20]}  Be4 {[%clk 0:01:16]} 27. Rxb6 {[%clk 0:00:16]}  Rxd4 {[%clk 0:01:15]} 28. Rxb7 {[%clk 0:00:08]}  Bxb7 {[%clk 0:01:14]} 0-1


[Site "https://www.chess.com"]

[Event "Titled Tuesday Blitz August 15 Early 2023"]
[White "brm72"]
[Black "Saucey, Michel"]
[BlackFideId "601845"]
[WhiteElo "2453"]
[BlackElo "2295"]
[Result "1-0"]
[Round "7"]
[TimeControl "180+1"]
[Date "2023.08.15"]
[WhiteClock "0:01:33"]
[BlackClock "0:00:02"]
[Board "149"]

1. e4 {[%clk 0:03:00]}  c5 {[%clk 0:02:59]} 2. Nf3 {[%clk 0:02:59]}  e6 {[%clk 0:02:58]} 3. d4 {[%clk 0:02:59]}  cxd4 {[%clk 0:02:59]} 4. Nxd4 {[%clk 0:03:00]}  Nc6 {[%clk 0:02:58]} 5. Nc3 {[%clk 0:03:01]}  Qc7 {[%clk 0:02:58]} 6. Be3 {[%clk 0:03:00]}  a6 {[%clk 0:02:58]} 7. Qd2 {[%clk 0:02:58]}  Nf6 {[%clk 0:02:58]} 8. f3 {[%clk 0:02:58]}  Be7 {[%clk 0:02:55]} 9. O-O-O {[%clk 0:02:58]}  b5 {[%clk 0:02:49]} 10. g4 {[%clk 0:02:54]}  h6 {[%clk 0:02:41]} 11. h4 {[%clk 0:02:53]}  Bb7 {[%clk 0:02:38]} 12. Kb1 {[%clk 0:02:45]}  Rc8 {[%clk 0:02:27]} 13. Bd3 {[%clk 0:02:38]}  b4 {[%clk 0:02:10]} 14. Nce2 {[%clk 0:02:27]}  Ne5 {[%clk 0:01:37]} 15. g5 {[%clk 0:02:20]}  Nh5 {[%clk 0:01:36]} 16. gxh6 {[%clk 0:02:08]}  gxh6 {[%clk 0:01:35]} 17. Bxh6 {[%clk 0:02:01]}  d5 {[%clk 0:01:01]} 18. Bg5 {[%clk 0:01:55]}  Nxf3 {[%clk 0:00:55]} 19. Nxf3 {[%clk 0:01:44]}  dxe4 {[%clk 0:00:54]} 20. Ned4 {[%clk 0:01:43]}  exf3 {[%clk 0:00:28]} 21. Bxe7 {[%clk 0:01:40]}  Qxe7 {[%clk 0:00:25]} 22. Rhf1 {[%clk 0:01:41]}  Ng3 {[%clk 0:00:21]} 23. Rxf3 {[%clk 0:01:37]}  Bxf3 {[%clk 0:00:19]} 24. Nxf3 {[%clk 0:01:38]}  Kf8 {[%clk 0:00:15]} 25. Qf4 {[%clk 0:01:36]}  Nh5 {[%clk 0:00:14]} 26. Qe5 {[%clk 0:01:36]}  Qf6 {[%clk 0:00:13]} 27. Qd6+ {[%clk 0:01:36]}  Qe7 {[%clk 0:00:11]} 28. Qxa6 {[%clk 0:01:36]}  Qc5 {[%clk 0:00:08]} 29. Ne5 {[%clk 0:01:33]}  Nf4 {[%clk 0:00:02]} 30. Nd7+ {[%clk 0:01:33]} 1-0


[Site "https://www.chess.com"]

[Event "Titled Tuesday Blitz August 15 Early 2023"]
[White "Kohler, Aran"]
[Black "Karavade, Eesha"]
[WhiteFideId "1002856"]
[BlackFideId "5012600"]
[WhiteElo "2260"]
[BlackElo "2419"]
[Result "0-1"]
[Round "7"]
[TimeControl "180+1"]
[Date "2023.08.15"]
[WhiteClock "0:00:14"]
[BlackClock "0:01:01"]
[Board "154"]

1. d4 {[%clk 0:03:00]}  Nf6 {[%clk 0:02:56]} 2. Nf3 {[%clk 0:02:59]}  d5 {[%clk 0:02:55]} 3. Bg5 {[%clk 0:02:58]}  Ne4 {[%clk 0:02:54]} 4. Bh4 {[%clk 0:02:57]}  c5 {[%clk 0:02:53]} 5. c3 {[%clk 0:02:57]}  Qb6 {[%clk 0:02:49]} 6. Qb3 {[%clk 0:02:54]}  c4 {[%clk 0:02:46]} 7. Qxb6 {[%clk 0:02:45]}  axb6 {[%clk 0:02:46]} 8. Nbd2 {[%clk 0:02:45]}  Nxd2 {[%clk 0:02:39]} 9. Nxd2 {[%clk 0:02:45]}  b5 {[%clk 0:02:39]} 10. a3 {[%clk 0:02:43]}  Bf5 {[%clk 0:02:38]} 11. Rc1 {[%clk 0:02:41]}  Nc6 {[%clk 0:02:38]} 12. f3 {[%clk 0:02:40]}  e6 {[%clk 0:02:35]} 13. e4 {[%clk 0:02:41]}  Bg6 {[%clk 0:02:35]} 14. Be2 {[%clk 0:02:39]}  Be7 {[%clk 0:02:14]} 15. Bxe7 {[%clk 0:02:36]}  Nxe7 {[%clk 0:02:13]} 16. O-O {[%clk 0:02:36]}  Nc8 {[%clk 0:02:12]} 17. exd5 {[%clk 0:02:09]}  exd5 {[%clk 0:02:11]} 18. Rfe1 {[%clk 0:02:07]}  O-O {[%clk 0:02:06]} 19. Bd1 {[%clk 0:02:02]}  f6 {[%clk 0:01:45]} 20. Bc2 {[%clk 0:02:01]}  Kf7 {[%clk 0:01:38]} 21. Bxg6+ {[%clk 0:01:59]}  hxg6 {[%clk 0:01:38]} 22. Re2 {[%clk 0:01:51]}  Nb6 {[%clk 0:01:35]} 23. f4 {[%clk 0:01:39]}  Rfe8 {[%clk 0:01:33]} 24. Rf2 {[%clk 0:01:30]}  Re7 {[%clk 0:01:30]} 25. Nf3 {[%clk 0:01:15]}  Rae8 {[%clk 0:01:25]} 26. Rcc2 {[%clk 0:01:14]}  Re3 {[%clk 0:01:19]} 27. g4 {[%clk 0:01:04]}  R8e4 {[%clk 0:01:17]} 28. Nd2 {[%clk 0:00:58]}  Re1+ {[%clk 0:01:15]} 29. Kg2 {[%clk 0:00:58]}  R4e2 {[%clk 0:01:14]} 30. Nf3 {[%clk 0:00:56]}  Rxf2+ {[%clk 0:01:09]} 31. Rxf2 {[%clk 0:00:47]}  Rb1 {[%clk 0:01:08]} 32. f5 {[%clk 0:00:38]}  Na4 {[%clk 0:01:07]} 33. fxg6+ {[%clk 0:00:38]}  Kxg6 {[%clk 0:01:07]} 34. Nh4+ {[%clk 0:00:38]}  Kf7 {[%clk 0:01:06]} 35. Rf5 {[%clk 0:00:37]}  Rxb2+ {[%clk 0:01:05]} 36. Kg3 {[%clk 0:00:35]}  Nxc3 {[%clk 0:01:05]} 37. g5 {[%clk 0:00:14]}  Ne4+ {[%clk 0:01:01]} 0-1


[Site "https://www.chess.com"]